[Event "*** Titled Tuesday Blitz"]
[Site "Chess.com"]
[Date "2020.05.12"]
[Round "1"]
[White "AsaHoffmann"]
[Black "Chepaschess"]
[Result "0-1"]
[WhiteElo "2403"]
[BlackElo "2765"]
[TimeControl "180+1"]
[EndTime "10:05:12 PDT"]
[Termination "Chepaschess won by resignation"]

1. d4 {[%clk 0:02:37.6]} 1... Nf6 {[%clk 0:02:59.6]} 2. Bg5 {[%clk 0:02:28.2]}
2... c5 {[%clk 0:02:58.8]} 3. d5 {[%clk 0:02:22]} 3... d6 {[%clk 0:02:53.9]} 4.
Nc3 {[%clk 0:02:19.1]} 4... h6 {[%clk 0:02:53.5]} 5. Bh4 {[%clk 0:02:17.8]} 5...
g5 {[%clk 0:02:44.3]} 6. Bg3 {[%clk 0:02:16.8]} 6... b5 {[%clk 0:02:45.2]} 7.
Nxb5 {[%clk 0:02:09.1]} 7... Qa5+ {[%clk 0:02:42.1]} 8. Nc3 {[%clk 0:02:07.6]}
8... Ne4 {[%clk 0:02:42.4]} 9. Qd3 {[%clk 0:01:59.7]} 9... Nxc3 {[%clk
0:02:15.9]} 10. Qxc3 {[%clk 0:01:58.4]} 10... Qxc3+ {[%clk 0:02:16.5]} 11. bxc3
{[%clk 0:01:57.6]} 11... Bg7 {[%clk 0:02:17.2]} 12. Kd2 {[%clk 0:01:54.9]} 12...
Nd7 {[%clk 0:02:09.4]} 13. e3 {[%clk 0:01:53.1]} 13... Nb6 {[%clk 0:02:08.1]}
14. Rb1 {[%clk 0:01:50.4]} 14... Nxd5 {[%clk 0:02:02.7]} 15. Bb5+ {[%clk
0:01:42.4]} 15... Bd7 {[%clk 0:01:58.6]} 16. Bxd7+ {[%clk 0:01:40.3]} 16... Kxd7
{[%clk 0:01:59.5]} 17. Ne2 {[%clk 0:01:39.4]} 17... Rab8 {[%clk 0:01:57.8]} 18.
e4 {[%clk 0:01:30.9]} 18... Nb6 {[%clk 0:01:56.7]} 19. Kd3 {[%clk 0:01:29.7]}
19... Kc6 {[%clk 0:01:50.8]} 20. f3 {[%clk 0:01:28.5]} 20... Rb7 {[%clk
0:01:38.6]} 21. c4 {[%clk 0:01:23.2]} 21... Rhb8 {[%clk 0:01:36.6]} 22. Rb3
{[%clk 0:01:15.5]} 22... e6 {[%clk 0:01:28.7]} 23. Rhb1 {[%clk 0:01:13.7]} 23...
Rd8 {[%clk 0:01:29.3]} 24. Be1 {[%clk 0:01:10.9]} 24... d5 {[%clk 0:01:29.2]}
25. cxd5+ {[%clk 0:01:08.9]} 25... exd5 {[%clk 0:01:30.1]} 26. exd5+ {[%clk
0:01:06.8]} 26... Rxd5+ {[%clk 0:01:30]} 27. Ke3 {[%clk 0:01:05.9]} 27... c4
{[%clk 0:01:24.6]} 28. Rb4 {[%clk 0:01:03.3]} 28... a5 {[%clk 0:01:21.8]} 29.
Rxb6+ {[%clk 0:00:55.1]} 29... Rxb6 {[%clk 0:01:21.8]} 30. Rxb6+ {[%clk
0:00:54.3]} 30... Kxb6 {[%clk 0:01:22.7]} 31. Nc3 {[%clk 0:00:51.6]} 31... Re5+
{[%clk 0:01:21.6]} 0-1

[Event "*** Titled Tuesday Blitz"]
[Site "Chess.com"]
[Date "2020.05.12"]
[Round "1"]
[White "guillembaches"]
[Black "Onischuk_V"]
[Result "0-1"]
[WhiteElo "2412"]
[BlackElo "2792"]
[TimeControl "180+1"]
[EndTime "10:05:13 PDT"]
[Termination "Onischuk_V won by resignation"]

1. e4 {[%clk 0:03:00.9]} 1... d6 {[%clk 0:02:58.2]} 2. d4 {[%clk 0:03:00.4]}
2... Nf6 {[%clk 0:02:58.4]} 3. f3 {[%clk 0:03:00.8]} 3... g6 {[%clk 0:02:58.4]}
4. Be3 {[%clk 0:02:59.7]} 4... Bg7 {[%clk 0:02:58.6]} 5. Qd2 {[%clk 0:02:59.7]}
5... O-O {[%clk 0:02:56.6]} 6. Bh6 {[%clk 0:02:56]} 6... c5 {[%clk 0:02:56.4]}
7. Ne2 {[%clk 0:02:55.3]} 7... cxd4 {[%clk 0:02:55.5]} 8. Nxd4 {[%clk
0:02:56.2]} 8... Nc6 {[%clk 0:02:55]} 9. Nb3 {[%clk 0:02:47.4]} 9... d5 {[%clk
0:02:54.7]} 10. exd5 {[%clk 0:02:41.9]} 10... Qxd5 {[%clk 0:02:53.6]} 11. Bxg7
{[%clk 0:02:38.4]} 11... Kxg7 {[%clk 0:02:51]} 12. Nc3 {[%clk 0:02:32.7]} 12...
Qxd2+ {[%clk 0:02:49.9]} 13. Nxd2 {[%clk 0:02:31.9]} 13... Bf5 {[%clk
0:02:40.8]} 14. O-O-O {[%clk 0:02:19.5]} 14... Rfd8 {[%clk 0:02:40.2]} 15. Bc4
{[%clk 0:02:05.2]} 15... Rac8 {[%clk 0:02:29.4]} 16. Bb3 {[%clk 0:02:01]} 16...
Nd4 {[%clk 0:02:25.7]} 17. Rhe1 {[%clk 0:01:56]} 17... Kf8 {[%clk 0:01:59.6]}
18. h3 {[%clk 0:01:42]} 18... a6 {[%clk 0:01:53.6]} 19. g4 {[%clk 0:01:40]}
19... Be6 {[%clk 0:01:53.2]} 20. Bxe6 {[%clk 0:01:29.9]} 20... Nxe6 {[%clk
0:01:52.8]} 21. Nb3 {[%clk 0:01:12.9]} 21... Nf4 {[%clk 0:01:50.6]} 22. h4
{[%clk 0:01:03.1]} 22... h5 {[%clk 0:01:50.2]} 23. g5 {[%clk 0:01:03]} 23...
N6d5 {[%clk 0:01:49.9]} 24. Nxd5 {[%clk 0:01:02.1]} 24... Nxd5 {[%clk
0:01:49.2]} 25. Rd4 {[%clk 0:00:57.3]} 25... e6 {[%clk 0:01:47.8]} 26. Red1
{[%clk 0:00:56.4]} 26... Ke7 {[%clk 0:01:46.7]} 27. c3 {[%clk 0:00:55.6]} 27...
Ne3 {[%clk 0:01:44.1]} 28. R1d3 {[%clk 0:00:47.3]} 28... Nf5 {[%clk 0:01:41.7]}
29. Rxd8 {[%clk 0:00:44.6]} 29... Rxd8 {[%clk 0:01:41.9]} 30. Rxd8 {[%clk
0:00:43.3]} 30... Kxd8 {[%clk 0:01:42]} 31. Nc5 {[%clk 0:00:43.6]} 31... Kc7
{[%clk 0:01:42.2]} 32. Ne4 {[%clk 0:00:42.5]} 32... Nxh4 {[%clk 0:01:42.1]} 33.
f4 {[%clk 0:00:42.7]} 33... Ng2 {[%clk 0:01:39.9]} 0-1

[Event "*** Titled Tuesday Blitz"]
[Site "Chess.com"]
[Date "2020.05.12"]
[Round "1"]
[White "Moon_stone123"]
[Black "VladimirBugayev"]
[Result "1-0"]
[WhiteElo "2516"]
[BlackElo "2160"]
[TimeControl "180+1"]
[EndTime "10:05:13 PDT"]
[Termination "Moon_stone123 won by resignation"]

1. e4 {[%clk 0:03:00.9]} 1... c6 {[%clk 0:02:59.6]} 2. Nc3 {[%clk 0:03:00.2]}
2... d5 {[%clk 0:02:59.3]} 3. Nf3 {[%clk 0:03:00.7]} 3... Nf6 {[%clk 0:02:57.9]}
4. e5 {[%clk 0:02:59]} 4... Ne4 {[%clk 0:02:57.5]} 5. Ne2 {[%clk 0:02:56]} 5...
Qb6 {[%clk 0:02:57]} 6. d4 {[%clk 0:02:54.8]} 6... e6 {[%clk 0:02:56.7]} 7. Ng3
{[%clk 0:02:53.2]} 7... c5 {[%clk 0:02:45.9]} 8. Bd3 {[%clk 0:02:52.9]} 8... Nc6
{[%clk 0:02:36]} 9. Nxe4 {[%clk 0:02:49.6]} 9... dxe4 {[%clk 0:02:35.2]} 10.
Bxe4 {[%clk 0:02:50.5]} 10... cxd4 {[%clk 0:02:29.2]} 11. O-O {[%clk 0:02:48.4]}
11... Bd7 {[%clk 0:02:21.9]} 12. a3 {[%clk 0:02:46.1]} 12... O-O-O {[%clk
0:02:17.2]} 13. b4 {[%clk 0:02:44.4]} 13... f5 {[%clk 0:02:15.2]} 14. Bd3 {[%clk
0:02:34.7]} 14... h6 {[%clk 0:02:12]} 15. Bb2 {[%clk 0:02:27.8]} 15... Be8
{[%clk 0:01:55.9]} 16. b5 {[%clk 0:02:23.2]} 16... Ne7 {[%clk 0:01:45.9]} 17. a4
{[%clk 0:02:20.6]} 17... Bh5 {[%clk 0:01:44.7]} 18. Be2 {[%clk 0:02:09.5]} 18...
g5 {[%clk 0:01:37.5]} 19. a5 {[%clk 0:02:04]} 19... Qc5 {[%clk 0:01:36.6]} 20.
Ra4 {[%clk 0:01:48.4]} 20... Kb8 {[%clk 0:01:34.4]} 21. Rc4 {[%clk 0:01:45.7]}
21... Qd5 {[%clk 0:01:25.4]} 22. Rxd4 {[%clk 0:01:40.8]} 22... Bxf3 {[%clk
0:01:14.9]} 23. Bxf3 {[%clk 0:01:26.8]} 23... Qxd4 {[%clk 0:01:13.3]} 24. Bxd4
{[%clk 0:01:26.5]} 24... g4 {[%clk 0:01:13.9]} 25. Be2 {[%clk 0:01:25.6]} 25...
Nd5 {[%clk 0:01:13.9]} 26. c4 {[%clk 0:01:23.2]} 26... Nc3 {[%clk 0:01:09.5]}
27. Bxa7+ {[%clk 0:01:21.9]} 27... Kxa7 {[%clk 0:01:07.3]} 28. Qxd8 {[%clk
0:01:16.8]} 28... Nxe2+ {[%clk 0:01:07.7]} 29. Kh1 {[%clk 0:01:16.4]} 29... Bg7
{[%clk 0:01:04.2]} 30. Qb6+ {[%clk 0:01:14.3]} 30... Ka8 {[%clk 0:01:02.3]} 31.
a6 {[%clk 0:01:15.2]} 31... bxa6 {[%clk 0:00:59.5]} 32. Ra1 {[%clk 0:01:14.8]}
1-0

[Event "*** Titled Tuesday Blitz"]
[Site "Chess.com"]
[Date "2020.05.12"]
[Round "1"]
[White "annacramling"]
[Black "Chessmatus"]
[Result "0-1"]
[WhiteElo "1880"]
[BlackElo "2472"]
[TimeControl "180+1"]
[EndTime "10:05:13 PDT"]
[Termination "Chessmatus won by resignation"]

1. d4 {[%clk 0:03:00.9]} 1... Nf6 {[%clk 0:02:59.6]} 2. c4 {[%clk 0:03:01]} 2...
g6 {[%clk 0:02:59.9]} 3. Nc3 {[%clk 0:03:01.1]} 3... d5 {[%clk 0:03:00.4]} 4.
cxd5 {[%clk 0:03:00.9]} 4... Nxd5 {[%clk 0:03:01.3]} 5. e4 {[%clk 0:03:01.1]}
5... Nxc3 {[%clk 0:03:01.8]} 6. bxc3 {[%clk 0:03:02]} 6... Bg7 {[%clk
0:03:02.1]} 7. Qa4+ {[%clk 0:03:02.5]} 7... Nd7 {[%clk 0:03:00.6]} 8. Bg5 {[%clk
0:03:01.6]} 8... O-O {[%clk 0:02:57.8]} 9. Qa3 {[%clk 0:03:01.2]} 9... c5 {[%clk
0:02:57.7]} 10. Nf3 {[%clk 0:02:55.1]} 10... a6 {[%clk 0:02:36]} 11. Bc4 {[%clk
0:02:45.8]} 11... h6 {[%clk 0:02:22.7]} 12. Be3 {[%clk 0:02:35.1]} 12... Qc7
{[%clk 0:02:20.9]} 13. Rc1 {[%clk 0:02:30]} 13... b5 {[%clk 0:02:16.7]} 14. Bd5
{[%clk 0:02:30.2]} 14... Bb7 {[%clk 0:02:13.3]} 15. O-O {[%clk 0:02:21.7]} 15...
Bxd5 {[%clk 0:02:02.8]} 16. exd5 {[%clk 0:02:22.6]} 16... Nb6 {[%clk 0:02:01.3]}
17. Qxc5 {[%clk 0:01:57.5]} 17... Qxc5 {[%clk 0:02:01.2]} 18. dxc5 {[%clk
0:01:58.4]} 18... Nxd5 {[%clk 0:02:01.8]} 19. Bd4 {[%clk 0:01:59]} 19... Rac8
{[%clk 0:02:01]} 20. Ne5 {[%clk 0:01:55.4]} 20... Bxe5 {[%clk 0:01:55.3]} 21.
Bxe5 {[%clk 0:01:54]} 21... Rxc5 {[%clk 0:01:55.8]} 22. Bd4 {[%clk 0:01:45.1]}
22... Rc4 {[%clk 0:01:54.6]} 23. Rfe1 {[%clk 0:01:43.2]} 23... Rfc8 {[%clk
0:01:53.9]} 24. h3 {[%clk 0:01:18.7]} 24... Nxc3 {[%clk 0:01:48.4]} 25. Bxc3
{[%clk 0:01:00.4]} 25... Rxc3 {[%clk 0:01:49.3]} 26. Rxc3 {[%clk 0:00:59.7]}
26... Rxc3 {[%clk 0:01:50.2]} 27. Rxe7 {[%clk 0:01:00.3]} 27... Rc2 {[%clk
0:01:50.7]} 28. a3 {[%clk 0:00:51.9]} 28... Rc3 {[%clk 0:01:46.6]} 29. Re3
{[%clk 0:00:45.9]} 29... Rxe3 {[%clk 0:01:46.3]} 30. fxe3 {[%clk 0:00:46.8]}
30... Kg7 {[%clk 0:01:46.8]} 31. Kf2 {[%clk 0:00:47.7]} 31... Kf6 {[%clk
0:01:47.4]} 32. Kf3 {[%clk 0:00:48.6]} 32... Ke5 {[%clk 0:01:47.9]} 33. g4
{[%clk 0:00:47.4]} 33... g5 {[%clk 0:01:47.8]} 34. Ke2 {[%clk 0:00:48.3]} 34...
a5 {[%clk 0:01:48.2]} 35. Kd2 {[%clk 0:00:48.5]} 35... b4 {[%clk 0:01:48.5]} 36.
axb4 {[%clk 0:00:48.9]} 36... axb4 {[%clk 0:01:49.4]} 37. Kc2 {[%clk 0:00:49.8]}
37... Ke4 {[%clk 0:01:49.5]} 38. Kb3 {[%clk 0:00:50.1]} 38... Kxe3 {[%clk
0:01:50.1]} 39. Kxb4 {[%clk 0:00:51]} 39... Kf3 {[%clk 0:01:50.7]} 40. Kc5
{[%clk 0:00:51.9]} 40... Kg3 {[%clk 0:01:51.3]} 41. Kd5 {[%clk 0:00:52.8]} 41...
Kxh3 {[%clk 0:01:52]} 42. Ke5 {[%clk 0:00:53.7]} 42... Kxg4 {[%clk 0:01:52.9]}
0-1

[Event "*** Titled Tuesday Blitz"]
[Site "Chess.com"]
[Date "2020.05.12"]
[Round "1"]
[White "GMHess"]
[Black "ErikRonka"]
[Result "1-0"]
[WhiteElo "2825"]
[BlackElo "2426"]
[TimeControl "180+1"]
[EndTime "10:05:16 PDT"]
[Termination "GMHess won by resignation"]

1. b3 {[%clk 0:03:00.4]} 1... e5 {[%clk 0:02:58.3]} 2. Bb2 {[%clk 0:03:01.3]}
2... Nc6 {[%clk 0:02:58.5]} 3. e3 {[%clk 0:02:55.9]} 3... Nf6 {[%clk 0:02:58.4]}
4. h3 {[%clk 0:02:55.5]} 4... d5 {[%clk 0:02:54.4]} 5. d3 {[%clk 0:02:54.1]}
5... Bd6 {[%clk 0:02:26.1]} 6. Nd2 {[%clk 0:02:53.3]} 6... O-O {[%clk 0:02:26]}
7. Ne2 {[%clk 0:02:52.9]} 7... Re8 {[%clk 0:02:17.5]} 8. g4 {[%clk 0:02:52.8]}
8... Qe7 {[%clk 0:02:07]} 9. Bg2 {[%clk 0:02:52.5]} 9... Be6 {[%clk 0:01:57.9]}
10. Ng3 {[%clk 0:02:51.6]} 10... Ba3 {[%clk 0:01:54.3]} 11. Qc1 {[%clk
0:02:44.4]} 11... Bxb2 {[%clk 0:01:53.4]} 12. Qxb2 {[%clk 0:02:45.3]} 12... a5
{[%clk 0:01:51.9]} 13. a3 {[%clk 0:02:42.6]} 13... h6 {[%clk 0:01:20]} 14. O-O-O
{[%clk 0:02:31]} 14... b5 {[%clk 0:01:16.3]} 15. Nf3 {[%clk 0:02:24.2]} 15... e4
{[%clk 0:00:59.6]} 16. dxe4 {[%clk 0:02:24.2]} 16... Nxe4 {[%clk 0:00:57.8]} 17.
Nxe4 {[%clk 0:02:24.2]} 17... dxe4 {[%clk 0:00:58.7]} 18. Nd4 {[%clk 0:02:16.6]}
18... Nxd4 {[%clk 0:00:55.1]} 19. Rxd4 {[%clk 0:02:17.5]} 19... f5 {[%clk
0:00:52.5]} 20. gxf5 {[%clk 0:02:05.3]} 20... Bxf5 {[%clk 0:00:52.5]} 21. Bf1
{[%clk 0:02:05.6]} 21... c6 {[%clk 0:00:51.7]} 22. Rg1 {[%clk 0:02:04.4]} 22...
Rad8 {[%clk 0:00:50.8]} 23. Kb1 {[%clk 0:01:50.1]} 23... Rxd4 {[%clk 0:00:49.5]}
24. Qxd4 {[%clk 0:01:51]} 24... Rd8 {[%clk 0:00:50]} 25. Rxg7+ {[%clk
0:01:50.8]} 25... Qxg7 {[%clk 0:00:50.1]} 26. Qxd8+ {[%clk 0:01:50.5]} 26... Kh7
{[%clk 0:00:50.1]} 27. Qe8 {[%clk 0:01:36]} 27... Qg1 {[%clk 0:00:29.3]} 28.
Qf7+ {[%clk 0:01:34.7]} 28... Kh8 {[%clk 0:00:27.5]} 29. Qf8+ {[%clk 0:01:35]}
1-0

[Event "*** Titled Tuesday Blitz"]
[Site "Chess.com"]
[Date "2020.05.12"]
[Round "1"]
[White "zubridis"]
[Black "TheSodabread"]
[Result "1-0"]
[WhiteElo "2476"]
[BlackElo "1940"]
[TimeControl "180+1"]
[EndTime "10:05:18 PDT"]
[Termination "zubridis won by resignation"]

1. Nf3 {[%clk 0:02:59.9]} 1... Nf6 {[%clk 0:02:57.1]} 2. c4 {[%clk 0:03:00.3]}
2... e6 {[%clk 0:02:56.6]} 3. g3 {[%clk 0:02:59.5]} 3... b6 {[%clk 0:02:55.1]}
4. Bg2 {[%clk 0:02:59.5]} 4... Bb7 {[%clk 0:02:55.5]} 5. O-O {[%clk 0:02:59.9]}
5... Be7 {[%clk 0:02:52.4]} 6. Nc3 {[%clk 0:02:59.8]} 6... O-O {[%clk
0:02:49.5]} 7. Re1 {[%clk 0:02:59.8]} 7... c5 {[%clk 0:02:25.1]} 8. e4 {[%clk
0:02:57.3]} 8... d6 {[%clk 0:02:20.5]} 9. d4 {[%clk 0:02:57.3]} 9... cxd4 {[%clk
0:02:18.7]} 10. Nxd4 {[%clk 0:02:58.2]} 10... Qc8 {[%clk 0:02:13.2]} 11. b3
{[%clk 0:02:46]} 11... a6 {[%clk 0:02:08.1]} 12. Be3 {[%clk 0:02:33]} 12... Nbd7
{[%clk 0:02:06.8]} 13. f4 {[%clk 0:02:32.7]} 13... Ra7 {[%clk 0:01:53.9]} 14.
Rc1 {[%clk 0:02:32.3]} 14... Qa8 {[%clk 0:01:53.7]} 15. Bf2 {[%clk 0:02:31]}
15... Rc8 {[%clk 0:01:43.8]} 16. g4 {[%clk 0:02:30.1]} 16... Nc5 {[%clk
0:01:34.9]} 17. Qe2 {[%clk 0:02:29]} 17... e5 {[%clk 0:01:19.1]} 18. Nf5 {[%clk
0:02:27.7]} 18... Bf8 {[%clk 0:01:14.6]} 19. g5 {[%clk 0:02:27.6]} 19... Ne8
{[%clk 0:01:09.4]} 20. Nd5 {[%clk 0:01:56.5]} 20... Bxd5 {[%clk 0:01:03]} 21.
cxd5 {[%clk 0:01:57.4]} 21... g6 {[%clk 0:00:59.9]} 22. Ne3 {[%clk 0:01:36.3]}
22... exf4 {[%clk 0:00:59.6]} 23. Nc4 {[%clk 0:01:23.6]} 23... b5 {[%clk
0:00:58.9]} 24. Na5 {[%clk 0:01:05.2]} 24... Nd7 {[%clk 0:00:58]} 25. Rxc8
{[%clk 0:01:00.9]} 25... Qxc8 {[%clk 0:00:58.9]} 26. Bxa7 {[%clk 0:01:00.4]} 1-0

[Event "*** Titled Tuesday Blitz"]
[Site "Chess.com"]
[Date "2020.05.12"]
[Round "1"]
[White "petrkostenko"]
[Black "canary2016"]
[Result "1-0"]
[WhiteElo "2475"]
[BlackElo "1916"]
[TimeControl "180+1"]
[EndTime "10:05:18 PDT"]
[Termination "petrkostenko won by checkmate"]

1. e4 {[%clk 0:02:59.2]} 1... c6 {[%clk 0:02:59.4]} 2. d3 {[%clk 0:02:57.3]}
2... d5 {[%clk 0:02:58.6]} 3. Nd2 {[%clk 0:02:57.8]} 3... Nf6 {[%clk 0:02:55.2]}
4. e5 {[%clk 0:02:56.8]} 4... Nfd7 {[%clk 0:02:52.9]} 5. f4 {[%clk 0:02:57.4]}
5... e6 {[%clk 0:02:49.4]} 6. d4 {[%clk 0:02:50]} 6... Nb6 {[%clk 0:02:47.3]} 7.
c3 {[%clk 0:02:48.6]} 7... N8d7 {[%clk 0:02:47.1]} 8. Bd3 {[%clk 0:02:48.4]}
8... c5 {[%clk 0:02:45.3]} 9. Ndf3 {[%clk 0:02:44.4]} 9... Be7 {[%clk
0:02:44.2]} 10. Ne2 {[%clk 0:02:44.8]} 10... c4 {[%clk 0:02:31]} 11. Bc2 {[%clk
0:02:44.1]} 11... a5 {[%clk 0:02:30.4]} 12. h4 {[%clk 0:02:39.8]} 12... a4
{[%clk 0:02:25.4]} 13. h5 {[%clk 0:02:24.9]} 13... a3 {[%clk 0:02:23.3]} 14. b3
{[%clk 0:02:20.4]} 14... cxb3 {[%clk 0:02:22.2]} 15. axb3 {[%clk 0:02:19.7]}
15... Qc7 {[%clk 0:02:18.5]} 16. Bd3 {[%clk 0:02:09.1]} 16... f6 {[%clk
0:02:16.3]} 17. Qc2 {[%clk 0:02:08.1]} 17... fxe5 {[%clk 0:02:08.9]} 18. fxe5
{[%clk 0:02:05.2]} 18... Nf8 {[%clk 0:02:03.5]} 19. h6 {[%clk 0:01:45]} 19... g6
{[%clk 0:02:02.6]} 20. Bg5 {[%clk 0:01:44.4]} 20... Bxg5 {[%clk 0:01:50.7]} 21.
Nxg5 {[%clk 0:01:43.5]} 21... Qe7 {[%clk 0:01:50.2]} 22. Qd2 {[%clk 0:01:41.7]}
22... Bd7 {[%clk 0:01:46.5]} 23. O-O {[%clk 0:01:40.5]} 23... Bc6 {[%clk
0:01:36.2]} 24. Rf7 {[%clk 0:01:37.7]} 24... Qd8 {[%clk 0:01:34]} 25. Qf4 {[%clk
0:01:33.1]} 25... Nfd7 {[%clk 0:01:18.7]} 26. Nxe6 {[%clk 0:01:21.3]} 26... Qc8
{[%clk 0:01:12.7]} 27. Rf1 {[%clk 0:01:09.9]} 27... Qb8 {[%clk 0:00:58.1]} 28.
Qg5 {[%clk 0:01:07.2]} 28... a2 {[%clk 0:00:52.1]} 29. Qe7# {[%clk 0:01:05.9]}
1-0

[Event "*** Titled Tuesday Blitz"]
[Site "Chess.com"]
[Date "2020.05.12"]
[Round "1"]
[White "Rumpel-VK"]
[Black "diablanni"]
[Result "1-0"]
[WhiteElo "2603"]
[BlackElo "2286"]
[TimeControl "180+1"]
[EndTime "10:05:19 PDT"]
[Termination "Rumpel-VK won by resignation"]

1. e4 {[%clk 0:02:54.7]} 1... c5 {[%clk 0:02:57.1]} 2. g3 {[%clk 0:02:53.4]}
2... d5 {[%clk 0:02:50.1]} 3. exd5 {[%clk 0:02:52.3]} 3... Qxd5 {[%clk
0:02:48.5]} 4. Nf3 {[%clk 0:02:51.5]} 4... Bg4 {[%clk 0:02:42.7]} 5. Bg2 {[%clk
0:02:51.1]} 5... Nc6 {[%clk 0:02:42.3]} 6. O-O {[%clk 0:02:46.5]} 6... O-O-O
{[%clk 0:02:36.5]} 7. h3 {[%clk 0:02:43.1]} 7... Bh5 {[%clk 0:02:33.8]} 8. Nc3
{[%clk 0:02:37.9]} 8... Qd7 {[%clk 0:02:32.7]} 9. d3 {[%clk 0:02:27.5]} 9... e5
{[%clk 0:02:30.2]} 10. Re1 {[%clk 0:02:16.7]} 10... f6 {[%clk 0:02:27.4]} 11.
Nxe5 {[%clk 0:02:04.4]} 11... Bxd1 {[%clk 0:02:24.9]} 12. Nxd7 {[%clk 0:02:04]}
12... Bxc2 {[%clk 0:02:24]} 13. Nxf8 {[%clk 0:02:03.8]} 13... Rxf8 {[%clk
0:02:24]} 14. Bxc6 {[%clk 0:02:03.6]} 14... bxc6 {[%clk 0:02:23.5]} 15. Be3
{[%clk 0:02:02.6]} 15... Bxd3 {[%clk 0:02:22.9]} 16. Bxc5 {[%clk 0:02:02.4]}
16... Rd8 {[%clk 0:02:21.2]} 17. Bxa7 {[%clk 0:02:00.8]} 17... Nh6 {[%clk
0:02:18.5]} 18. Bc5 {[%clk 0:01:42.7]} 18... Rhe8 {[%clk 0:02:11.9]} 19. a4
{[%clk 0:01:35.4]} 19... Nf7 {[%clk 0:01:46.8]} 20. f4 {[%clk 0:01:30.2]} 20...
h5 {[%clk 0:01:43.9]} 21. a5 {[%clk 0:01:27.9]} 21... Kb7 {[%clk 0:01:39.5]} 22.
Rxe8 {[%clk 0:01:21.3]} 22... Rxe8 {[%clk 0:01:38.1]} 23. Kf2 {[%clk 0:01:21.7]}
23... Nh6 {[%clk 0:01:33.2]} 24. Ra4 {[%clk 0:01:16.5]} 24... Ka6 {[%clk
0:01:10.9]} 25. Rb4 {[%clk 0:01:11.5]} 25... Bb5 {[%clk 0:01:09.9]} 26. Bb6
{[%clk 0:01:06.3]} 26... Nf5 {[%clk 0:01:05.8]} 27. Ne4 {[%clk 0:01:04.4]} 27...
Kb7 {[%clk 0:00:54.7]} 28. g4 {[%clk 0:01:04.5]} 1-0

[Event "*** Titled Tuesday Blitz"]
[Site "Chess.com"]
[Date "2020.05.12"]
[Round "1"]
[White "THE_PLAYER6"]
[Black "BhulseATX"]
[Result "1-0"]
[WhiteElo "2476"]
[BlackElo "1962"]
[TimeControl "180+1"]
[EndTime "10:05:19 PDT"]
[Termination "THE_PLAYER6 won by resignation"]

1. d4 {[%clk 0:02:59.3]} 1... d5 {[%clk 0:02:59.3]} 2. c4 {[%clk 0:02:59]} 2...
e6 {[%clk 0:02:58.5]} 3. Nc3 {[%clk 0:02:55.5]} 3... Nf6 {[%clk 0:02:58.4]} 4.
cxd5 {[%clk 0:02:55.4]} 4... exd5 {[%clk 0:02:57.9]} 5. Bg5 {[%clk 0:02:55.5]}
5... Be7 {[%clk 0:02:57.2]} 6. e3 {[%clk 0:02:56.1]} 6... O-O {[%clk 0:02:56.6]}
7. Bd3 {[%clk 0:02:50.9]} 7... c6 {[%clk 0:02:48.3]} 8. Qc2 {[%clk 0:02:47.1]}
8... h6 {[%clk 0:02:46.9]} 9. Bh4 {[%clk 0:02:43.6]} 9... Nbd7 {[%clk
0:02:44.8]} 10. Nf3 {[%clk 0:02:41.8]} 10... Re8 {[%clk 0:02:43.8]} 11. O-O-O
{[%clk 0:02:39.1]} 11... Nf8 {[%clk 0:02:40.1]} 12. Ne5 {[%clk 0:02:35.2]} 12...
N6d7 {[%clk 0:02:20.2]} 13. Bxe7 {[%clk 0:02:26.9]} 13... Qxe7 {[%clk
0:02:19.2]} 14. Nf3 {[%clk 0:02:14.7]} 14... b5 {[%clk 0:02:13.5]} 15. Ne2
{[%clk 0:02:10.6]} 15... Bb7 {[%clk 0:02:08.7]} 16. Ng3 {[%clk 0:02:10.4]} 16...
g6 {[%clk 0:01:56.7]} 17. h4 {[%clk 0:02:08.7]} 17... c5 {[%clk 0:01:54.3]} 18.
h5 {[%clk 0:01:58.3]} 18... cxd4 {[%clk 0:01:47.4]} 19. Kb1 {[%clk 0:01:54.2]}
19... Ne5 {[%clk 0:01:35.3]} 20. Nxe5 {[%clk 0:01:51.7]} 20... Qxe5 {[%clk
0:01:34.6]} 21. exd4 {[%clk 0:01:52]} 21... Qf6 {[%clk 0:01:28.4]} 22. hxg6
{[%clk 0:01:50.7]} 22... fxg6 {[%clk 0:01:24.1]} 23. Rxh6 {[%clk 0:01:49.7]}
23... Rac8 {[%clk 0:01:20.3]} 24. Qd2 {[%clk 0:01:48.9]} 24... Rc7 {[%clk
0:01:04.3]} 25. Bxb5 {[%clk 0:01:43]} 25... Rec8 {[%clk 0:01:00.1]} 26. Ba4
{[%clk 0:01:29.8]} 26... Ba6 {[%clk 0:00:54.9]} 27. a3 {[%clk 0:01:23]} 27...
Rc4 {[%clk 0:00:48.6]} 28. Bb3 {[%clk 0:01:21.4]} 28... R4c7 {[%clk 0:00:45.6]}
29. Bxd5+ {[%clk 0:01:20]} 29... Kg7 {[%clk 0:00:44.3]} 30. Nh5+ {[%clk
0:01:19.8]} 1-0

[Event "*** Titled Tuesday Blitz"]
[Site "Chess.com"]
[Date "2020.05.12"]
[Round "1"]
[White "mamey78"]
[Black "Egor_Pakhomov"]
[Result "1-0"]
[WhiteElo "2337"]
[BlackElo "2623"]
[TimeControl "180+1"]
[EndTime "10:05:21 PDT"]
[Termination "mamey78 won by resignation"]

1. e4 {[%clk 0:02:58.7]} 1... c5 {[%clk 0:02:49.5]} 2. Nf3 {[%clk 0:02:58.5]}
2... Nc6 {[%clk 0:02:48.2]} 3. c3 {[%clk 0:02:58.2]} 3... Nf6 {[%clk 0:02:47.7]}
4. e5 {[%clk 0:02:58]} 4... Nd5 {[%clk 0:02:48.3]} 5. d4 {[%clk 0:02:58.3]} 5...
cxd4 {[%clk 0:02:48]} 6. Bc4 {[%clk 0:02:58.2]} 6... e6 {[%clk 0:02:47.7]} 7.
cxd4 {[%clk 0:02:57.7]} 7... d6 {[%clk 0:02:48.2]} 8. O-O {[%clk 0:02:57.6]}
8... Be7 {[%clk 0:02:48.7]} 9. Qe2 {[%clk 0:02:57.7]} 9... a6 {[%clk 0:02:47.4]}
10. Nc3 {[%clk 0:02:55.7]} 10... Nxc3 {[%clk 0:02:41.6]} 11. bxc3 {[%clk
0:02:55.4]} 11... b5 {[%clk 0:02:40.4]} 12. Bb3 {[%clk 0:02:54.7]} 12... dxe5
{[%clk 0:02:40.9]} 13. dxe5 {[%clk 0:02:50.8]} 13... Bb7 {[%clk 0:02:39.1]} 14.
Qe4 {[%clk 0:02:30.1]} 14... Qc7 {[%clk 0:02:36.6]} 15. Re1 {[%clk 0:02:22.1]}
15... O-O {[%clk 0:02:33.8]} 16. Bc2 {[%clk 0:02:08.8]} 16... g6 {[%clk
0:02:33.3]} 17. Bh6 {[%clk 0:02:08.4]} 17... Rfd8 {[%clk 0:02:32.1]} 18. Qf4
{[%clk 0:02:00.8]} 18... b4 {[%clk 0:02:04.4]} 19. Ng5 {[%clk 0:01:53.4]} 19...
Nxe5 {[%clk 0:01:39.3]} 20. Rxe5 {[%clk 0:01:36.7]} 20... f6 {[%clk 0:01:34.9]}
21. Rae1 {[%clk 0:01:28.7]} 21... Bd5 {[%clk 0:01:23]} 22. Nxh7 {[%clk
0:01:17.3]} 22... Kxh7 {[%clk 0:00:58.7]} 23. Bxg6+ {[%clk 0:01:03.4]} 23...
Kxg6 {[%clk 0:00:56.8]} 24. Qg4+ {[%clk 0:00:58]} 1-0